[Event "Late-Titled-Tuesday-Blitz-February-20-2024"]
[Site "Chess.com"]
[Date "2024.02.20"]
[Round "9"]
[White "Alex_Sahakyan2006"]
[Black "platy3"]
[Result "1-0"]
[WhiteElo "2843"]
[BlackElo "2943"]
[TimeControl "180+1"]
[EndTime "15:44:38 PST"]
[Termination "Alex_Sahakyan2006 won on time"]

1. e4 {[%clk 0:02:57.6]} 1... c5 {[%clk 0:02:56.8]} 2. Nc3 {[%clk 0:02:57.2]}
2... e6 {[%clk 0:02:55.1]} 3. Nf3 {[%clk 0:02:57.3]} 3... Nc6 {[%clk 0:02:53.4]}
4. Bb5 {[%clk 0:02:57.5]} 4... Nd4 {[%clk 0:02:52.7]} 5. O-O {[%clk 0:02:54.8]}
5... a6 {[%clk 0:02:52.4]} 6. Bd3 {[%clk 0:02:54]} 6... Nc6 {[%clk 0:02:52]} 7.
Nd5 {[%clk 0:02:48.6]} 7... Nf6 {[%clk 0:02:46.7]} 8. Re1 {[%clk 0:02:40.4]}
8... d6 {[%clk 0:02:41]} 9. Ne3 {[%clk 0:02:32.9]} 9... Be7 {[%clk 0:02:39.4]}
10. c3 {[%clk 0:02:32.8]} 10... b5 {[%clk 0:02:28.8]} 11. Bc2 {[%clk 0:02:24.8]}
11... Bb7 {[%clk 0:02:28.8]} 12. b3 {[%clk 0:01:51.3]} 12... O-O {[%clk
0:02:20.7]} 13. Bb2 {[%clk 0:01:51.7]} 13... Rc8 {[%clk 0:02:18.2]} 14. a4
{[%clk 0:01:47.4]} 14... Ne5 {[%clk 0:02:12.2]} 15. axb5 {[%clk 0:01:42.6]}
15... axb5 {[%clk 0:02:10.7]} 16. d3 {[%clk 0:01:34.7]} 16... Qb6 {[%clk
0:02:06]} 17. c4 {[%clk 0:01:09.7]} 17... Nfd7 {[%clk 0:02:01.7]} 18. Nxe5
{[%clk 0:00:58.7]} 18... Nxe5 {[%clk 0:01:53.1]} 19. Ng4 {[%clk 0:00:51.2]}
19... bxc4 {[%clk 0:01:29.5]} 20. dxc4 {[%clk 0:00:40.6]} 20... Rfd8 {[%clk
0:01:11.9]} 21. Re3 {[%clk 0:00:33.6]} 21... Nxg4 {[%clk 0:00:46]} 22. Qxg4
{[%clk 0:00:34.5]} 22... e5 {[%clk 0:00:46.4]} 23. Rg3 {[%clk 0:00:30.5]} 23...
Bf8 {[%clk 0:00:46]} 24. f4 {[%clk 0:00:29.6]} 24... Qc7 {[%clk 0:00:42.9]} 25.
Rf1 {[%clk 0:00:25.9]} 25... Bc6 {[%clk 0:00:36.9]} 26. Qh5 {[%clk 0:00:21.3]}
26... Re8 {[%clk 0:00:31.8]} 27. Rgf3 {[%clk 0:00:19]} 27... f6 {[%clk
0:00:28.8]} 28. Rh3 {[%clk 0:00:16.8]} 28... h6 {[%clk 0:00:29.1]} 29. Rg3
{[%clk 0:00:13]} 29... Kh8 {[%clk 0:00:28.3]} 30. f5 {[%clk 0:00:10.7]} 30...
Qb7 {[%clk 0:00:23.4]} 31. Qg4 {[%clk 0:00:09.2]} 31... Qf7 {[%clk 0:00:22.6]}
32. Bc1 {[%clk 0:00:09.7]} 32... Rb8 {[%clk 0:00:22.6]} 33. Bxh6 {[%clk
0:00:09.9]} 33... gxh6 {[%clk 0:00:21.4]} 34. Qh4 {[%clk 0:00:10.6]} 34... Bg7
{[%clk 0:00:03.7]} 35. Bd1 {[%clk 0:00:10.8]} 35... Rg8 {[%clk 0:00:03.7]} 36.
Bh5 {[%clk 0:00:11.2]} 36... Qf8 {[%clk 0:00:04.2]} 37. Bg6 {[%clk 0:00:10.9]}
37... Be8 {[%clk 0:00:03.7]} 38. Qh5 {[%clk 0:00:09.2]} 38... Bxg6 {[%clk
0:00:03.1]} 39. fxg6 {[%clk 0:00:08.2]} 39... Rb7 {[%clk 0:00:02.2]} 40. Qf5
{[%clk 0:00:08.3]} 40... Qc8 {[%clk 0:00:02.3]} 41. Qh5 {[%clk 0:00:08]} 41...
Qb8 {[%clk 0:00:02.9]} 42. Rff3 {[%clk 0:00:07.6]} 42... Ra7 {[%clk 0:00:02.7]}
43. h4 {[%clk 0:00:07.5]} 43... Ra1+ {[%clk 0:00:02.6]} 44. Kh2 {[%clk
0:00:08.1]} 44... Re1 {[%clk 0:00:03]} 45. Rxf6 {[%clk 0:00:08.1]} 45... Rxe4
{[%clk 0:00:03.4]} 46. Rf7 {[%clk 0:00:08.5]} 46... Qd8 {[%clk 0:00:01.5]} 47.
Qxh6+ {[%clk 0:00:08.7]} 1-0

[Event "Late-Titled-Tuesday-Blitz-February-20-2024"]
[Site "Chess.com"]
[Date "2024.02.20"]
[Round "9"]
[White "sansanathalia"]
[Black "rcmz"]
[Result "0-1"]
[WhiteElo "2363"]
[BlackElo "2204"]
[TimeControl "180+1"]
[EndTime "15:44:38 PST"]
[Termination "rcmz won on time"]

1. e4 {[%clk 0:00:12.3]} 1... a6 {[%clk 0:02:56.9]} 2. Nf3 {[%clk 0:00:12.2]}
2... e6 {[%clk 0:02:55.2]} 3. d4 {[%clk 0:00:12.8]} 3... b5 {[%clk 0:02:54.5]}
4. Nc3 {[%clk 0:00:13.3]} 4... Bb7 {[%clk 0:02:53.3]} 5. a3 {[%clk 0:00:13.8]}
5... c5 {[%clk 0:02:52.4]} 6. dxc5 {[%clk 0:00:13.1]} 6... Bxc5 {[%clk
0:02:51.4]} 7. Bd3 {[%clk 0:00:13.6]} 7... Nc6 {[%clk 0:02:47.4]} 8. O-O {[%clk
0:00:13.9]} 8... Qc7 {[%clk 0:02:47.1]} 9. b4 {[%clk 0:00:14.1]} 9... Be7 {[%clk
0:02:44.4]} 10. Ne2 {[%clk 0:00:14.6]} 10... Nf6 {[%clk 0:02:43.1]} 11. Bb2
{[%clk 0:00:14.7]} 11... d6 {[%clk 0:02:41.3]} 12. Ng3 {[%clk 0:00:15.2]} 12...
h6 {[%clk 0:02:40]} 13. c4 {[%clk 0:00:15.7]} 13... bxc4 {[%clk 0:02:28]} 14.
Bxc4 {[%clk 0:00:16.6]} 14... Nxb4 {[%clk 0:02:19.1]} 15. Bxe6 {[%clk
0:00:16.5]} 15... fxe6 {[%clk 0:02:08.1]} 16. axb4 {[%clk 0:00:16.6]} 16... Qb6
{[%clk 0:02:03.6]} 17. Nd4 {[%clk 0:00:15.4]} 17... d5 {[%clk 0:02:01.2]} 18.
exd5 {[%clk 0:00:14.9]} 18... Bxd5 {[%clk 0:02:00.4]} 19. b5 {[%clk 0:00:14.9]}
19... a5 {[%clk 0:01:57.5]} 20. Bc3 {[%clk 0:00:14.2]} 20... O-O {[%clk
0:01:52.8]} 21. Nh5 {[%clk 0:00:13.6]} 21... Nxh5 {[%clk 0:01:46.9]} 22. Qxh5
{[%clk 0:00:14.5]} 22... Bf6 {[%clk 0:01:46.8]} 23. Qd1 {[%clk 0:00:14.5]} 23...
Rfc8 {[%clk 0:01:40.9]} 24. Bb2 {[%clk 0:00:14.9]} 24... Rd8 {[%clk 0:01:35.1]}
25. Qd2 {[%clk 0:00:11.1]} 25... Bxg2 {[%clk 0:01:32.5]} 26. Kxg2 {[%clk
0:00:10.7]} 26... Bxd4 {[%clk 0:01:31.7]} 27. Rfd1 {[%clk 0:00:09.5]} 27... Qb7+
{[%clk 0:01:24.3]} 28. f3 {[%clk 0:00:08.5]} 28... Bf6 {[%clk 0:01:22.5]} 29.
Qc2 {[%clk 0:00:08.4]} 29... Rdc8 {[%clk 0:01:21]} 30. Qb3 {[%clk 0:00:08.2]}
30... a4 {[%clk 0:01:20.3]} 31. Qxe6+ {[%clk 0:00:08]} 31... Qf7 {[%clk
0:01:17.1]} 32. Qxf7+ {[%clk 0:00:08.2]} 32... Kxf7 {[%clk 0:01:17.1]} 33. Bxf6
{[%clk 0:00:08.8]} 33... Kxf6 {[%clk 0:01:17.1]} 34. b6 {[%clk 0:00:09.5]} 34...
Rab8 {[%clk 0:01:16]} 35. Rdb1 {[%clk 0:00:08.5]} 35... Rc6 {[%clk 0:01:14.9]}
36. b7 {[%clk 0:00:07.1]} 36... Rc7 {[%clk 0:01:14.5]} 37. Rb6+ {[%clk
0:00:07.5]} 37... Kf7 {[%clk 0:01:11.7]} 38. Rab1 {[%clk 0:00:07.6]} 38... a3
{[%clk 0:01:10.6]} 39. Ra1 {[%clk 0:00:06.7]} 39... a2 {[%clk 0:01:10.1]} 40.
Rxa2 {[%clk 0:00:06.8]} 40... Rcxb7 {[%clk 0:01:10]} 41. Rxb7+ {[%clk
0:00:06.8]} 41... Rxb7 {[%clk 0:01:10.2]} 42. Rc2 {[%clk 0:00:07.5]} 42... Rb4
{[%clk 0:01:08.6]} 43. Kg3 {[%clk 0:00:08]} 43... Kf6 {[%clk 0:01:08.4]} 44. Rc7
{[%clk 0:00:08.5]} 44... g5 {[%clk 0:01:07.9]} 45. Rc6+ {[%clk 0:00:09]} 45...
Kg7 {[%clk 0:01:07.4]} 46. Rd6 {[%clk 0:00:09.5]} 46... h5 {[%clk 0:01:04.6]}
47. Rd5 {[%clk 0:00:09.6]} 47... Kg6 {[%clk 0:01:03.9]} 48. Rd6+ {[%clk
0:00:09.6]} 48... Kg7 {[%clk 0:01:03.5]} 49. Rd5 {[%clk 0:00:10]} 49... Kg6
{[%clk 0:01:03.8]} 50. Ra5 {[%clk 0:00:10.5]} 50... h4+ {[%clk 0:01:02.2]} 51.
Kh3 {[%clk 0:00:10.7]} 51... Rf4 {[%clk 0:01:01.3]} 52. Kg2 {[%clk 0:00:10.6]}
52... Kh5 {[%clk 0:01:00.5]} 53. Ra8 {[%clk 0:00:09.8]} 53... Rb4 {[%clk
0:00:59.1]} 54. Rh8+ {[%clk 0:00:10.1]} 54... Kg6 {[%clk 0:00:58.9]} 55. Kh3
{[%clk 0:00:10.3]} 55... Kg7 {[%clk 0:00:57.1]} 56. Rc8 {[%clk 0:00:09.5]} 56...
Kg6 {[%clk 0:00:56.9]} 57. Rg8+ {[%clk 0:00:07.9]} 57... Kf6 {[%clk 0:00:55.7]}
58. Kg2 {[%clk 0:00:06.4]} 58... Kf5 {[%clk 0:00:54.5]} 59. Kh3 {[%clk
0:00:05.6]} 59... Kf6 {[%clk 0:00:54.3]} 60. Rf8+ {[%clk 0:00:05.5]} 60... Kg6
{[%clk 0:00:53.9]} 61. Rf5 {[%clk 0:00:06]} 61... Kxf5 {[%clk 0:00:53.7]} 62.
Kg2 {[%clk 0:00:04.1]} 62... Kf4 {[%clk 0:00:53.9]} 63. Kh3 {[%clk 0:00:04]}
63... Rb3 {[%clk 0:00:53.5]} 64. Kg2 {[%clk 0:00:03.4]} 64... Rxf3 {[%clk
0:00:53.4]} 65. h3 {[%clk 0:00:02]} 65... g4 {[%clk 0:00:53.3]} 66. Kh2 {[%clk
0:00:01.1]} 66... g3+ {[%clk 0:00:52.7]} 67. Kg2 {[%clk 0:00:01.1]} 67... Rf2+
{[%clk 0:00:52.7]} 68. Kg1 {[%clk 0:00:01.8]} 68... Kf3 {[%clk 0:00:52]} 0-1

[Event "Late-Titled-Tuesday-Blitz-February-20-2024"]
[Site "Chess.com"]
[Date "2024.02.20"]
[Round "9"]
[White "Taran2004"]
[Black "laziestwin"]
[Result "1/2-1/2"]
[WhiteElo "2439"]
[BlackElo "2552"]
[TimeControl "180+1"]
[EndTime "15:44:39 PST"]
[Termination "Game drawn by repetition"]

1. e4 {[%clk 0:03:00.9]} 1... d6 {[%clk 0:02:58.4]} 2. d4 {[%clk 0:03:00.4]}
2... Nf6 {[%clk 0:02:57.3]} 3. Nc3 {[%clk 0:03:00.1]} 3... g6 {[%clk 0:02:57.8]}
4. Nf3 {[%clk 0:02:59.9]} 4... Bg7 {[%clk 0:02:58.3]} 5. Bc4 {[%clk 0:02:59.9]}
5... O-O {[%clk 0:02:58.1]} 6. O-O {[%clk 0:02:58.5]} 6... Nxe4 {[%clk
0:02:58.6]} 7. Bxf7+ {[%clk 0:02:57.1]} 7... Rxf7 {[%clk 0:02:59.5]} 8. Nxe4
{[%clk 0:02:57.1]} 8... Bg4 {[%clk 0:02:58.8]} 9. Neg5 {[%clk 0:02:54.5]} 9...
Rf8 {[%clk 0:02:58.7]} 10. h3 {[%clk 0:02:54.9]} 10... Bf5 {[%clk 0:02:56.6]}
11. Qe2 {[%clk 0:02:49.4]} 11... e5 {[%clk 0:02:17.2]} 12. dxe5 {[%clk
0:02:43.1]} 12... h6 {[%clk 0:02:16.8]} 13. Ne4 {[%clk 0:02:41.5]} 13... dxe5
{[%clk 0:02:16.3]} 14. Rd1 {[%clk 0:02:36.8]} 14... Qe7 {[%clk 0:02:16]} 15. Nc3
{[%clk 0:02:36]} 15... c6 {[%clk 0:02:10.8]} 16. Be3 {[%clk 0:02:34.8]} 16...
Nd7 {[%clk 0:02:08.3]} 17. Qd2 {[%clk 0:02:24.1]} 17... Kh7 {[%clk 0:02:03.6]}
18. Qd6 {[%clk 0:02:22.9]} 18... Rae8 {[%clk 0:01:57.5]} 19. Qxe7 {[%clk
0:02:19.4]} 19... Rxe7 {[%clk 0:01:58.4]} 20. Rd2 {[%clk 0:02:19]} 20... Bxh3
{[%clk 0:01:55.4]} 21. Rad1 {[%clk 0:02:15.7]} 21... Bg4 {[%clk 0:01:53.9]} 22.
Ne4 {[%clk 0:02:09]} 22... Nf6 {[%clk 0:01:46.1]} 23. Nxf6+ {[%clk 0:01:59.6]}
23... Rxf6 {[%clk 0:01:45.7]} 24. Re1 {[%clk 0:01:51.8]} 24... b6 {[%clk
0:01:35.5]} 25. Nh2 {[%clk 0:01:48.1]} 25... Be6 {[%clk 0:01:32.6]} 26. a3
{[%clk 0:01:44.9]} 26... Rff7 {[%clk 0:01:23.9]} 27. Nf1 {[%clk 0:01:39.8]}
27... Rd7 {[%clk 0:01:17.4]} 28. Red1 {[%clk 0:01:39.4]} 28... Rd5 {[%clk
0:01:04.3]} 29. c4 {[%clk 0:01:23.5]} 29... Rxd2 {[%clk 0:00:59.1]} 30. Nxd2
{[%clk 0:01:24.4]} 30... Rd7 {[%clk 0:00:57.9]} 31. b3 {[%clk 0:01:24.7]} 31...
Bf8 {[%clk 0:00:45.1]} 32. a4 {[%clk 0:01:19.8]} 32... Bb4 {[%clk 0:00:33.8]}
33. Kf1 {[%clk 0:01:18.8]} 33... Bf5 {[%clk 0:00:34.2]} 34. Ke2 {[%clk
0:01:15.1]} 34... Bd3+ {[%clk 0:00:33.9]} 35. Kf3 {[%clk 0:01:12.5]} 35... Bc2
{[%clk 0:00:28.5]} 36. Rc1 {[%clk 0:01:12.4]} 36... Bd3 {[%clk 0:00:21.4]} 37.
Nb1 {[%clk 0:01:02.2]} 37... e4+ {[%clk 0:00:17.7]} 38. Kg3 {[%clk 0:00:59.5]}
38... Bd6+ {[%clk 0:00:17.1]} 39. Kh3 {[%clk 0:00:59.1]} 39... Bxb1 {[%clk
0:00:12]} 40. Rxb1 {[%clk 0:01:00]} 40... Bc5 {[%clk 0:00:12.2]} 41. Bxc5 {[%clk
0:00:51.8]} 41... bxc5 {[%clk 0:00:13.1]} 42. Re1 {[%clk 0:00:51.5]} 42... Kg7
{[%clk 0:00:04]} 43. Kg4 {[%clk 0:00:51.6]} 43... Kf6 {[%clk 0:00:04.2]} 44.
Rxe4 {[%clk 0:00:48.9]} 44... Rd3 {[%clk 0:00:04.3]} 45. Re8 {[%clk 0:00:47.5]}
45... Rxb3 {[%clk 0:00:04.3]} 46. Rc8 {[%clk 0:00:48.1]} 46... Rb4 {[%clk
0:00:04.1]} 47. Rxc6+ {[%clk 0:00:48.2]} 47... Kg7 {[%clk 0:00:04.6]} 48. Rxc5
{[%clk 0:00:46.9]} 48... Rxa4 {[%clk 0:00:04.9]} 49. Kf4 {[%clk 0:00:44.4]}
49... a5 {[%clk 0:00:04.6]} 50. Ke5 {[%clk 0:00:43.2]} 50... g5 {[%clk
0:00:03.7]} 51. f4 {[%clk 0:00:38.5]} 51... gxf4 {[%clk 0:00:03.4]} 52. Kxf4
{[%clk 0:00:39.4]} 52... Ra2 {[%clk 0:00:03.7]} 53. g4 {[%clk 0:00:39.3]} 53...
a4 {[%clk 0:00:03.6]} 54. Ra5 {[%clk 0:00:37.2]} 54... a3 {[%clk 0:00:03.1]} 55.
Ra7+ {[%clk 0:00:35.4]} 55... Kf6 {[%clk 0:00:03.3]} 56. Ra6+ {[%clk 0:00:35.8]}
56... Kg7 {[%clk 0:00:03.1]} 57. Ra7+ {[%clk 0:00:28.1]} 57... Kg6 {[%clk
0:00:03.2]} 58. Ra6+ {[%clk 0:00:28.8]} 58... Kf7 {[%clk 0:00:03.4]} 59. Ra7+
{[%clk 0:00:29.3]} 59... Kg8 {[%clk 0:00:03.1]} 60. Ra8+ {[%clk 0:00:29]} 60...
Kg7 {[%clk 0:00:03.1]} 61. Ra7+ {[%clk 0:00:29.6]} 1/2-1/2

[Event "Late-Titled-Tuesday-Blitz-February-20-2024"]
[Site "Chess.com"]
[Date "2024.02.20"]
[Round "9"]
[White "vugarrasulov"]
[Black "GnowReopard"]
[Result "1-0"]
[WhiteElo "2941"]
[BlackElo "2824"]
[TimeControl "180+1"]
[EndTime "15:44:45 PST"]
[Termination "vugarrasulov won by resignation"]

1. e4 {[%clk 0:03:00.9]} 1... e6 {[%clk 0:02:59.2]} 2. d4 {[%clk 0:03:00.4]}
2... d5 {[%clk 0:02:59.4]} 3. exd5 {[%clk 0:03:01.3]} 3... exd5 {[%clk
0:02:59.4]} 4. Nf3 {[%clk 0:03:02]} 4... Bd6 {[%clk 0:02:59.1]} 5. c4 {[%clk
0:03:00.8]} 5... Nf6 {[%clk 0:02:58.5]} 6. c5 {[%clk 0:03:00.7]} 6... Be7 {[%clk
0:02:58.6]} 7. Bd3 {[%clk 0:02:58.4]} 7... O-O {[%clk 0:02:58.3]} 8. O-O {[%clk
0:02:58.6]} 8... Bg4 {[%clk 0:02:52.9]} 9. h3 {[%clk 0:02:56.1]} 9... Bh5 {[%clk
0:02:52.7]} 10. Be3 {[%clk 0:02:54.8]} 10... b6 {[%clk 0:02:49.2]} 11. cxb6
{[%clk 0:02:50.5]} 11... axb6 {[%clk 0:02:50.1]} 12. Nc3 {[%clk 0:02:49.1]}
12... Nbd7 {[%clk 0:02:49]} 13. Be2 {[%clk 0:02:41.8]} 13... c6 {[%clk
0:02:28.5]} 14. Rc1 {[%clk 0:02:39.8]} 14... Bd6 {[%clk 0:02:28.7]} 15. a4
{[%clk 0:02:33.9]} 15... Re8 {[%clk 0:02:27.5]} 16. Re1 {[%clk 0:02:21.3]} 16...
Qb8 {[%clk 0:02:22.8]} 17. Nh4 {[%clk 0:02:18.1]} 17... Bxe2 {[%clk 0:02:20.8]}
18. Rxe2 {[%clk 0:02:19]} 18... g6 {[%clk 0:02:19.9]} 19. Nf3 {[%clk 0:02:14.1]}
19... Qb7 {[%clk 0:02:16]} 20. Bh6 {[%clk 0:02:07.5]} 20... Rxe2 {[%clk
0:02:11.9]} 21. Qxe2 {[%clk 0:02:08.4]} 21... Re8 {[%clk 0:02:11.8]} 22. Qd3
{[%clk 0:02:08.6]} 22... Ne4 {[%clk 0:02:11]} 23. Nxe4 {[%clk 0:01:55.5]} 23...
dxe4 {[%clk 0:02:04.4]} 24. Qe2 {[%clk 0:01:48.7]} 24... Nf6 {[%clk 0:01:58.5]}
25. Nd2 {[%clk 0:01:44.7]} 25... c5 {[%clk 0:01:41.4]} 26. Nc4 {[%clk
0:01:39.5]} 26... Bb8 {[%clk 0:01:35]} 27. dxc5 {[%clk 0:01:35.8]} 27... bxc5
{[%clk 0:01:35.9]} 28. Rd1 {[%clk 0:01:25.4]} 28... Qa6 {[%clk 0:01:33.9]} 29.
b3 {[%clk 0:01:24.1]} 29... Qe6 {[%clk 0:01:27.2]} 30. Qe3 {[%clk 0:01:20.7]}
30... Qf5 {[%clk 0:01:11.1]} 31. Qc3 {[%clk 0:01:16.6]} 31... Bc7 {[%clk
0:01:00]} 32. a5 {[%clk 0:01:09.1]} 32... Re6 {[%clk 0:00:59.6]} 33. g4 {[%clk
0:00:55]} 33... Qf3 {[%clk 0:00:50]} 34. Qxf3 {[%clk 0:00:55.2]} 34... exf3
{[%clk 0:00:50.9]} 35. Be3 {[%clk 0:00:55.5]} 35... h5 {[%clk 0:00:23.8]} 36.
gxh5 {[%clk 0:00:48.2]} 36... Nxh5 {[%clk 0:00:23.7]} 37. Ra1 {[%clk 0:00:40.5]}
37... Ra6 {[%clk 0:00:19.6]} 38. Bxc5 {[%clk 0:00:40.6]} 38... Nf4 {[%clk
0:00:20]} 39. b4 {[%clk 0:00:40.7]} 39... Nxh3+ {[%clk 0:00:15]} 40. Kf1 {[%clk
0:00:41]} 40... Re6 {[%clk 0:00:09.8]} 41. a6 {[%clk 0:00:39.9]} 41... Bb8
{[%clk 0:00:09.9]} 42. b5 {[%clk 0:00:31]} 42... Re4 {[%clk 0:00:09.4]} 43. b6
{[%clk 0:00:28.7]} 43... Rg4 {[%clk 0:00:09.6]} 44. Ke1 {[%clk 0:00:22.5]} 44...
Rg1+ {[%clk 0:00:07.4]} 45. Kd2 {[%clk 0:00:23]} 45... Rxa1 {[%clk 0:00:08.1]}
46. a7 {[%clk 0:00:23.6]} 46... Bxa7 {[%clk 0:00:06]} 47. bxa7 {[%clk
0:00:24.5]} 47... Nf4 {[%clk 0:00:06.4]} 48. Na3 {[%clk 0:00:24]} 48... Ra2+
{[%clk 0:00:03.8]} 49. Kd1 {[%clk 0:00:21.3]} 49... Ra1+ {[%clk 0:00:04.1]} 50.
Kc2 {[%clk 0:00:21]} 50... Ra2+ {[%clk 0:00:03.6]} 51. Kb3 {[%clk 0:00:21.2]}
51... Rxa3+ {[%clk 0:00:04.1]} 52. Bxa3 {[%clk 0:00:20.2]} 1-0

[Event "Late-Titled-Tuesday-Blitz-February-20-2024"]
[Site "Chess.com"]
[Date "2024.02.20"]
[Round "9"]
[White "jk13"]
[Black "thesupera12"]
[Result "1-0"]
[WhiteElo "2692"]
[BlackElo "2483"]
[TimeControl "180+1"]
[EndTime "15:44:47 PST"]
[Termination "jk13 won on time"]

1. e4 {[%clk 0:03:00.4]} 1... d5 {[%clk 0:02:59.5]} 2. exd5 {[%clk 0:03:00.4]}
2... Qxd5 {[%clk 0:03:00.4]} 3. Nc3 {[%clk 0:03:00.8]} 3... Qa5 {[%clk
0:03:01.2]} 4. d4 {[%clk 0:03:01.4]} 4... Nf6 {[%clk 0:03:01.5]} 5. Bc4 {[%clk
0:03:02]} 5... Bg4 {[%clk 0:03:02.2]} 6. f3 {[%clk 0:03:01.5]} 6... Bh5 {[%clk
0:03:02.8]} 7. Ne2 {[%clk 0:02:58.6]} 7... Nc6 {[%clk 0:03:03.1]} 8. d5 {[%clk
0:02:53.3]} 8... O-O-O {[%clk 0:03:02.1]} 9. Bd2 {[%clk 0:02:53.3]} 9... Ne5
{[%clk 0:03:00.5]} 10. Bb3 {[%clk 0:02:48.7]} 10... Bxf3 {[%clk 0:02:56.7]} 11.
gxf3 {[%clk 0:02:08.4]} 11... Nxf3+ {[%clk 0:02:57.6]} 12. Kf1 {[%clk
0:02:08.8]} 12... e6 {[%clk 0:02:46.2]} 13. Ne4 {[%clk 0:01:49.2]} 13... Qa6
{[%clk 0:02:39.8]} 14. Nxf6 {[%clk 0:01:39]} 14... gxf6 {[%clk 0:02:40.7]} 15.
Kf2 {[%clk 0:01:35.3]} 15... Ne5 {[%clk 0:02:24]} 16. Nc3 {[%clk 0:01:31]} 16...
Bc5+ {[%clk 0:02:12.3]} 17. Be3 {[%clk 0:01:31.5]} 17... Qb6 {[%clk 0:02:01.8]}
18. Bxc5 {[%clk 0:01:26.9]} 18... Qxc5+ {[%clk 0:02:02.7]} 19. Kf1 {[%clk
0:01:24.2]} 19... Rhg8 {[%clk 0:01:51.9]} 20. Qe2 {[%clk 0:01:16]} 20... Rg5
{[%clk 0:01:45.2]} 21. Ne4 {[%clk 0:00:55.9]} 21... Rf5+ {[%clk 0:01:44.2]} 22.
Ke1 {[%clk 0:00:56.3]} 22... Qa5+ {[%clk 0:01:02.3]} 23. c3 {[%clk 0:00:48.4]}
23... exd5 {[%clk 0:00:57]} 24. Ng3 {[%clk 0:00:42.6]} 24... Rf3 {[%clk
0:00:38]} 25. Rd1 {[%clk 0:00:37.7]} 25... d4 {[%clk 0:00:35.1]} 26. Rf1 {[%clk
0:00:28.8]} 26... Re3 {[%clk 0:00:35.3]} 27. Rxd4 {[%clk 0:00:22.1]} 27... Rxe2+
{[%clk 0:00:34.7]} 28. Nxe2 {[%clk 0:00:23]} 28... Rxd4 {[%clk 0:00:30.4]} 29.
Nxd4 {[%clk 0:00:23.7]} 29... Nd3+ {[%clk 0:00:29.8]} 30. Kd2 {[%clk 0:00:24.1]}
30... Nxb2 {[%clk 0:00:29.7]} 31. Kc2 {[%clk 0:00:22.9]} 31... Na4 {[%clk
0:00:28.1]} 32. Rf3 {[%clk 0:00:18.3]} 32... Nc5 {[%clk 0:00:26.7]} 33. Rf5
{[%clk 0:00:13.6]} 33... Qb6 {[%clk 0:00:23.4]} 34. Bxf7 {[%clk 0:00:12.4]}
34... Ne4 {[%clk 0:00:20.6]} 35. Bd5 {[%clk 0:00:11.4]} 35... Nd6 {[%clk
0:00:15]} 36. Rxf6 {[%clk 0:00:11]} 36... Qa5 {[%clk 0:00:14.2]} 37. Rf8+ {[%clk
0:00:07.6]} 37... Kd7 {[%clk 0:00:13.8]} 38. Be6+ {[%clk 0:00:05.4]} 38... Ke7
{[%clk 0:00:13.1]} 39. Rh8 {[%clk 0:00:06.3]} 39... Qa4+ {[%clk 0:00:12.2]} 40.
Kb2 {[%clk 0:00:06.2]} 40... Qa6 {[%clk 0:00:10.2]} 41. Rxh7+ {[%clk 0:00:06.2]}
41... Kf6 {[%clk 0:00:10.9]} 42. Rh6+ {[%clk 0:00:06.7]} 42... Kg5 {[%clk
0:00:09.6]} 43. Rh8 {[%clk 0:00:06]} 43... Qb6+ {[%clk 0:00:09.7]} 44. Kc2
{[%clk 0:00:05.7]} 44... Qa6 {[%clk 0:00:08.1]} 45. Rg8+ {[%clk 0:00:05.5]}
45... Kf6 {[%clk 0:00:07.4]} 46. h4 {[%clk 0:00:05.4]} 46... Qa4+ {[%clk
0:00:07.6]} 47. Kb2 {[%clk 0:00:05.5]} 47... Qa5 {[%clk 0:00:07.9]} 48. Rg5
{[%clk 0:00:05.8]} 48... Qb6+ {[%clk 0:00:07.3]} 49. Bb3 {[%clk 0:00:06.1]} 1-0